fUST/lending_fUST_20250820
["ID","MTS","AMOUNT","RATE_DAILY","PERIOD"]
[380310816,1755654639387,-483.77400052,0.00019178,2]
[380310817,1755654639398,-487.84278666,0.00019178,2]
[380310818,1755654639408,-490.61281875,0.00019178,2]
[380310819,1755654639418,-461.29987205,0.00019178,2]
[380310820,1755654639428,-488.673184,0.00019178,2]
[380310821,1755654639438,-461.11712654,0.00019178,2]
[380310822,1755654639449,-481.96356548,0.00019178,2]
[380310823,1755654639459,-481.30733113,0.00019178,2]
[380310824,1755654639470,-487.04258607,0.00019178,2]
[380310825,1755654639480,-503.0058991,0.00019178,2]
[380310826,1755654639490,-481.6580344,0.00019178,2]
[380310827,1755654639499,-503.66689003,0.00019178,2]
[380310828,1755654639509,-678.94,0.00019178,2]
[380310829,1755654639518,-490.02990112,0.00019178,2]
[380310830,1755654639529,-462.85616901,0.00019178,2]
[380310831,1755654639539,-500.7920299,0.00019178,2]
[380310832,1755654639549,-482.32428951,0.00019178,2]
[380310833,1755654639560,-481.80019367,0.00019178,2]
[380310834,1755654639569,-482.10280235,0.00019178,2]
[380310835,1755654639580,-480.0,0.00019178,2]
[380310836,1755654639589,-405.52851024,0.00019178,2]
[380310837,1755654639599,-300.0,0.0001935,20]
[380310838,1755654639609,-300.0,0.0001935,20]
[380310839,1755654639619,-300.0,0.0001935,20]
[380310840,1755654639630,-480.0,0.00019452,2]
[380310841,1755654639642,-480.0,0.00019452,2]
[380310842,1755654639653,-480.0,0.00019452,2]
[380310843,1755654639668,-480.0,0.00019452,2]
[380310844,1755654639677,-480.0,0.00019452,2]
[380310845,1755654639688,-480.0,0.00019452,2]
[380310846,1755654639698,-480.0,0.00019452,2]
[380310847,1755654639708,-678.94,0.00019452,2]
[380310848,1755654639718,-480.0,0.00019452,2]
[380310849,1755654639728,-1011.48041055,0.00019521,2]
[380310850,1755654639737,-542.08738086,0.00019533,2]
[380310851,1755654639747,-277.03866738,0.00019708,2]
[380310852,1755654639755,-510.21,0.00019725,2]
[380310853,1755654639765,-499.1318,0.00019725,2]
[380310854,1755654639774,-480.0,0.00019725,2]
[380310855,1755654639783,-63.41693781,0.00019726,2]
[380310856,1755654639795,-416.58306219,0.00019726,2]
[380310857,1755654639804,-572.1317132,0.00019726,2]
[380310858,1755654639814,-480.0,0.00019726,2]
[380310859,1755654639823,-480.0,0.00019726,2]
[380310860,1755654639833,-601.98943845,0.00019726,2]
[380310861,1755654639842,-480.0,0.00019726,2]
[380310862,1755654639852,-678.94,0.00019726,2]
[380310863,1755654639861,-601.33529043,0.00019726,2]
[380310864,1755654639870,-399.28392363,0.00019768,2]
[380310865,1755654639880,-376.514732,0.00019863,2]
[380310866,1755654639890,-461.37503576,0.00019998,2]
[380310867,1755654639899,-484.39780565,0.00019998,2]
[380310868,1755654639908,-481.43863551,0.00019998,2]
[380310869,1755654639918,-482.9605154,0.00019998,2]
[380310870,1755654639927,-485.89492901,0.00019998,2]
[380310871,1755654639936,-483.23527904,0.00019998,2]
[380310872,1755654639946,-482.71018048,0.00019998,2]
[380310874,1755654639955,-481.19856333,0.00019998,2]
[380310875,1755654639965,-480.49115093,0.00019998,2]
[380310876,1755654639974,-528.04155829,0.00019998,2]
[380310877,1755654639984,-490.43644628,0.00019998,2]
[380310878,1755654639993,-461.308502,0.00019998,2]
[380310879,1755654640003,-461.64307354,0.00019998,2]
[380310881,1755654640012,-448.32425065,0.00019998,2]
[380310883,1755654640022,-482.01097758,0.00019998,2]
[380310885,1755654640033,-483.15867276,0.00019998,2]
[380310887,1755654640042,-483.02707898,0.00019998,2]
[380310889,1755654640051,-483.87543322,0.00019998,2]
[380310891,1755654640061,-481.29519835,0.00019998,2]
[380310893,1755654640071,-481.44804822,0.00019998,2]
[380310909,1755654640194,-414.04948135,0.00019998,2]
[380310911,1755654640204,-460.70636019,0.00019998,2]
[380310913,1755654640214,-510.21,0.00019999,2]
[380310915,1755654640224,-480.0,0.00019999,2]
[380310916,1755654640234,-161.63748512,0.0002,2]
[380310917,1755654640245,-480.0,0.0002,2]
[380310918,1755654640255,-240.22123046,0.0002,2]
[380310919,1755654640265,-480.0,0.0002,2]
[380310921,1755654640274,-678.94,0.0002,2]
[380310922,1755654640284,-482.11487927,0.00020187,2]
[380310923,1755654640294,-482.76173,0.00020187,2]
[380310924,1755654640304,-790.14,0.00020187,2]
[380310925,1755654640313,-198.906262,0.00020187,2]
[380310926,1755654640323,-510.21,0.00020273,2]
[380310927,1755654640332,-303.27934841,0.00020273,2]
[380310928,1755654640342,-480.0,0.00020273,2]
[380310929,1755654640351,-480.0,0.00020273,2]
[380310930,1755654640361,-678.94,0.00020273,2]
[380310931,1755654640371,-790.14,0.00020461,2]
[380310932,1755654640380,-510.21,0.00020547,2]
[380310933,1755654640389,-480.0,0.00020547,2]
[380310934,1755654640400,-549.77580863,0.00020547,2]
[380310935,1755654640410,-678.94,0.00020547,2]
[380310936,1755654640420,-420.0,0.00020602,2]
[380310937,1755654640429,-399.28392363,0.00020635,2]
[380310938,1755654640439,-1218.0,0.00020702,2]
[380310939,1755654640449,-790.14,0.00020735,2]
[380310940,1755654640458,-510.21,0.00020821,2]
[380310941,1755654640468,-480.0,0.00020821,2]
[380310942,1755654640478,-678.94,0.00020821,2]
[380310943,1755654640487,-790.14,0.00021009,2]
[380310944,1755654640497,-510.21,0.00021095,2]
[380310945,1755654640507,-480.0,0.00021095,2]
[380310946,1755654640517,-678.94,0.00021095,2]
[380310947,1755654640527,-155.86223651,0.00021178,4]
[380310948,1755654640536,-790.14,0.00021283,2]
[380310949,1755654640546,-510.21,0.00021369,2]
[380310950,1755654640555,-480.0,0.00021369,2]
[380310951,1755654640565,-24.72526242,0.00021369,2]
[380310952,1755654640577,-654.21473758,0.00021369,2]
[380310953,1755654640586,-160.0,0.00021395,2]
[380310954,1755654640596,-790.14,0.00021556,2]
[380310955,1755654640605,-510.21,0.00021643,2]
[380310956,1755654640614,-480.0,0.00021643,2]
[380310957,1755654640623,-678.94,0.00021643,2]
[380310958,1755654640632,-790.14,0.0002183,2]
[380310959,1755654640642,-510.21,0.00021917,2]
[380310960,1755654640653,-480.0,0.00021917,2]
[380310961,1755654640662,-678.94,0.00021917,2]
[380310962,1755654640672,-1388.8,0.00022,7]
[380310963,1755654640681,-4776.8,0.00022,7]
[380310964,1755654640691,-174.0,0.00022,2]
[380310965,1755654640700,-211.13,0.000221,2]
[380310966,1755654640710,-790.14,0.00022104,2]
[380310967,1755654640719,-510.21,0.00022191,2]
[380310968,1755654640728,-480.0,0.00022191,2]
[380310969,1755654640738,-678.94,0.00022191,2]
[380310970,1755654640747,-790.14,0.00022378,2]
[380310971,1755654640756,-587.0,0.00022459,2]
[380310972,1755654640765,-510.21,0.00022465,2]
[380310973,1755654640774,-366.04282697,0.00022465,2]
[380310974,1755654640783,-678.94,0.00022465,2]
[380310975,1755654640792,-160.0,0.000225,2]
[380310976,1755654640801,-790.14,0.00022652,2]
[380310977,1755654640810,-510.21,0.00022739,2]
[380310978,1755654640819,-678.94,0.00022739,2]
[380310979,1755654640828,-270.73484368,0.00022775,2]
[380310980,1755654640837,-480.0,0.00022775,2]
[380310981,1755654640846,-460.8776948,0.00022775,2]
[380310982,1755654640855,-226.0532672,0.00022775,2]
[380310983,1755654640864,-480.0,0.00022775,2]
[380310984,1755654640873,-790.14,0.00022926,2]
[380310985,1755654640882,-160.54604506,0.0002299,2]
[380310986,1755654640891,-680.94,0.00023,4]
[380310987,1755654640901,-500.0,0.00023,3]
[380310988,1755654640910,-500.0,0.00023,3]
[380310989,1755654640919,-500.0,0.00023,3]
[380310990,1755654640929,-500.0,0.00023,3]
[380310991,1755654640938,-13270.12,0.00023,7]
[380310992,1755654640947,-215.79176414,0.00023,7]
[380310993,1755654640955,-510.21,0.00023013,2]
[380310994,1755654640964,-678.94,0.00023013,2]
[380310995,1755654640974,-260.0,0.00023048,2]
[380310996,1755654640982,-480.0,0.00023049,2]
[380310997,1755654640991,-2503.32668316,0.00023188,2]
[380310998,1755654641000,-790.14,0.000232,2]
[380310999,1755654641009,-510.21,0.00023287,2]
[380311000,1755654641020,-678.94,0.00023287,2]
[380311001,1755654641032,-376.514732,0.00023288,2]
[380311002,1755654641041,-151.0,0.00023288,2]
[380311003,1755654641050,-151.0,0.00023288,2]
[380311004,1755654641059,-219.34316259,0.00023288,2]
[380311005,1755654641069,-151.0,0.00023288,2]
[380311006,1755654641078,-151.87745032,0.00023288,2]
[380311007,1755654641087,-198.56612924,0.00023288,2]
[380311008,1755654641096,-151.53481056,0.00023288,2]
[380311009,1755654641107,-151.13364118,0.00023288,2]
[380311010,1755654641116,-151.40378166,0.00023288,2]
[380311011,1755654641125,-151.38390949,0.00023288,2]
[380311012,1755654641134,-151.0,0.00023288,2]
[380311013,1755654641143,-151.46014241,0.00023288,2]
[380311014,1755654641153,-151.0,0.00023288,2]
[380311015,1755654641163,-492.0,0.00023288,2]
[380311016,1755654641172,-151.63295258,0.00023288,2]
[380311017,1755654641181,-151.0,0.00023288,2]
[380311018,1755654641190,-151.815781,0.00023288,2]
[380311019,1755654641199,-151.0,0.00023288,2]
[380311020,1755654641209,-151.0,0.00023288,2]
[380311021,1755654641218,-201.90319904,0.00023288,2]
[380311022,1755654641227,-500.0,0.00023288,2]
[380311023,1755654641237,-151.27159399,0.00023288,2]
[380311024,1755654641246,-151.0,0.00023288,2]
[380311025,1755654641255,-151.0,0.00023288,2]
[380311026,1755654641264,-239.92304177,0.00023288,2]
[380311027,1755654641274,-189.38456978,0.00023288,2]
[380311028,1755654641283,-500.0,0.00023288,2]
[380311029,1755654641292,-151.0,0.00023288,2]
[380311030,1755654641302,-151.0,0.00023288,2]
[380311031,1755654641312,-480.0,0.00023323,2]
[380311032,1755654641321,-790.14,0.00023474,2]
[380311033,1755654641330,-3336.81022151,0.00023496,2]
[380311034,1755654641420,-4780.0,0.00023496,2]
[380311035,1755654641434,-979.83838272,0.00023496,2]
[380311036,1755654641445,-500.0,0.00023499,2]
[380311037,1755654641463,-2288.31134581,0.00023499,2]
[380311038,1755654641480,-2288.31134581,0.00023499,2]
[380311039,1755654641490,-2288.31134581,0.00023499,2]
[380311040,1755654641500,-1895.09167891,0.00023499,2]
[380311041,1755654641516,-393.2196669,0.00023499,2]
[380311042,1755654641527,-2288.31134581,0.00023499,2]
[380311043,1755654641537,-749.32779323,0.00023499,2]
[380311044,1755654641550,-1538.98355258,0.00023499,2]
[380311045,1755654641560,-1949.33881578,0.00023499,2]
[380311046,1755654641572,-338.97253003,0.00023499,2]
[380311047,1755654641582,-2288.31134581,0.00023499,2]
[380311048,1755654641592,-2288.31134581,0.00023499,2]
[380311049,1755654641602,-2288.31134581,0.00023499,2]
[380311050,1755654641611,-2288.31134581,0.00023499,2]
[380311051,1755654641621,-2288.31134581,0.00023499,2]
[380311052,1755654641631,-1149.80068722,0.00023499,2]
[380311053,1755654641642,-1138.51065859,0.00023499,2]
[380311054,1755654641653,-1626.67544396,0.00023499,2]
[380311055,1755654641664,-661.63590185,0.00023499,2]
[380311056,1755654641674,-2288.31134581,0.00023499,2]
[380311057,1755654641689,-207.47818274,0.00023499,2]
[380311058,1755654641707,-385.96861133,0.00023499,2]
[380311059,1755654641719,-374.4860386,0.00023499,2]
[380311060,1755654641731,-1320.37851314,0.00023499,2]
[380311061,1755654641741,-2288.31134581,0.00023499,2]
[380311062,1755654641750,-1191.31014105,0.00023499,2]
[380311063,1755654641762,-1097.00120476,0.00023499,2]
[380311064,1755654641772,-2288.31134581,0.00023499,2]
[380311065,1755654641781,-2288.31134581,0.00023499,2]
[380311066,1755654641791,-2288.31134581,0.00023499,2]
[380311067,1755654641801,-289.79202628,0.00023499,2]
[380311068,1755654641810,-2288.31134581,0.00023499,2]
[380311069,1755654641820,-4776.8,0.000235,7]
[380311070,1755654641830,-153.0,0.00023507,2]
[380311071,1755654641839,-153.0,0.00023507,2]
[380311072,1755654641849,-153.0,0.00023507,2]
[380311073,1755654641857,-153.0,0.00023507,2]
[380311074,1755654641867,-153.0,0.00023507,2]
[380311075,1755654641876,-153.0,0.00023507,2]
[380311076,1755654641886,-153.0,0.00023507,2]
[380311077,1755654641895,-153.0,0.00023507,2]
[380311078,1755654641907,-153.0,0.00023507,2]
[380311080,1755654641916,-153.0,0.00023507,2]
[380311081,1755654641925,-153.0,0.00023507,2]
[380311082,1755654641933,-153.0,0.00023507,2]
[380311084,1755654641943,-153.0,0.00023507,2]
[380311085,1755654641952,-153.0,0.00023507,2]
[380311086,1755654641961,-153.0,0.00023507,2]
[380311087,1755654641971,-153.0,0.00023507,2]
[380311089,1755654641980,-153.0,0.00023507,2]
[380311091,1755654641989,-153.0,0.00023507,2]
[380311093,1755654641998,-153.0,0.00023507,2]
[380311094,1755654642007,-153.0,0.00023507,2]
[380311095,1755654642016,-153.0,0.00023507,2]
[380311096,1755654642028,-153.0,0.00023507,2]
[380311097,1755654642038,-153.0,0.00023507,2]
[380311099,1755654642047,-153.0,0.00023507,2]
[380311100,1755654642056,-153.0,0.00023507,2]
[380311101,1755654642066,-153.0,0.00023507,2]
[380311102,1755654642075,-153.0,0.00023507,2]
[380311103,1755654642084,-153.0,0.00023507,2]
[380311104,1755654642092,-153.0,0.00023507,2]
[380311105,1755654642103,-153.0,0.00023507,2]
[380311106,1755654642113,-153.0,0.00023507,2]
[380311107,1755654642122,-153.0,0.00023507,2]
[380311108,1755654642131,-153.0,0.00023507,2]
[380311109,1755654642140,-153.0,0.00023507,2]
[380311110,1755654642152,-153.0,0.00023507,2]
[380311111,1755654642161,-153.0,0.00023507,2]
[380311112,1755654642171,-153.0,0.00023507,2]
[380311113,1755654642182,-153.0,0.00023507,2]
[380311114,1755654642192,-153.0,0.00023507,2]
[380311115,1755654642203,-153.0,0.00023507,2]
[380311116,1755654642212,-153.0,0.00023507,2]
[380311117,1755654642222,-153.0,0.00023507,2]
[380311118,1755654642232,-153.0,0.00023507,2]
[380311119,1755654642241,-153.0,0.00023507,2]
[380311120,1755654642251,-153.0,0.00023507,2]
[380311121,1755654642260,-153.0,0.00023507,2]
[380311122,1755654642270,-153.0,0.00023507,2]
[380311123,1755654642278,-153.0,0.00023507,2]
[380311124,1755654642288,-153.0,0.00023507,2]
[380311125,1755654642297,-510.21,0.00023561,2]
[380311126,1755654642306,-678.94,0.00023561,2]
[380311127,1755654642315,-151.30915853,0.00023562,2]
[380311128,1755654642325,-198.99807432,0.00023562,2]
[380311129,1755654642334,-151.0,0.00023562,2]
[380311130,1755654642343,-151.0,0.00023562,2]
[380311131,1755654642353,-151.0,0.00023562,2]
[380311132,1755654642362,-492.0,0.00023562,2]
[380311133,1755654642371,-151.89224758,0.00023562,2]
[380311134,1755654642380,-151.0,0.00023562,2]
[380311135,1755654642389,-151.0,0.00023562,2]
[380311136,1755654642401,-548.83601117,0.00023562,2]
[380311137,1755654642410,-151.0,0.00023562,2]
[380311138,1755654642420,-500.0,0.00023562,2]
[380311139,1755654642429,-151.0,0.00023562,2]
[380311140,1755654642439,-284.88869581,0.00023562,2]
[380311141,1755654642449,-500.37734669,0.00023573,2]
[380311142,1755654642458,-501.45845513,0.00023573,2]
[380311143,1755654642467,-503.67614614,0.00023573,2]
[380311144,1755654642478,-232.21311493,0.00023587,2]
[380311145,1755654642487,-215.79176414,0.00023587,2]
[380311146,1755654642497,-375.88899365,0.00023588,2]
[380311147,1755654642506,-160.0,0.00023588,2]
[380311148,1755654642515,-843.93972674,0.00023588,2]
[380311149,1755654642525,-2503.32668315,0.00023591,2]
[380311150,1755654642534,-360.0,0.00023596,2]
[380311151,1755654642542,-160.0,0.00023596,2]
[380311152,1755654642552,-480.0,0.00023597,2]
[380311153,1755654642562,-548.82642241,0.00023597,2]
[380311154,1755654642571,-480.0,0.00023597,2]
[380311155,1755654642580,-1650.576,0.00023598,4]
[380311156,1755654642589,-179.431,0.00023598,4]
[380311157,1755654642598,-1388.8,0.000236,7]
[380311158,1755654642608,-481.09503478,0.00023699,2]
[380311159,1755654642617,-481.52995591,0.00023699,2]
[380311160,1755654642626,-509.60270178,0.00023699,2]
[380311161,1755654642635,-165.72334133,0.00023699,2]
[380311162,1755654642645,-482.25145034,0.00023699,2]
[380311163,1755654642656,-485.14484007,0.00023699,2]
[380311164,1755654642665,-481.64563176,0.00023699,2]
[380311165,1755654642674,-482.2143462,0.00023699,2]
[380311166,1755654642683,-480.66435182,0.00023699,2]
[380311167,1755654642692,-480.55033051,0.00023699,2]
[380311168,1755654642701,-482.11884649,0.00023699,2]
[380311169,1755654642710,-461.05036537,0.00023699,2]
[380311170,1755654642719,-481.01968859,0.00023699,2]
[380311171,1755654642729,-483.11606258,0.00023699,2]
[380311172,1755654642738,-482.93589538,0.00023699,2]
[380311173,1755654642747,-480.41808334,0.00023699,2]
[380311174,1755654642756,-484.84544553,0.00023699,2]
[380311175,1755654642765,-461.01262832,0.00023699,2]
[380311176,1755654642774,-481.39644534,0.00023699,2]
[380311177,1755654642783,-422.61420735,0.00023699,2]
[380311178,1755654642791,-481.22659708,0.00023699,2]
[380311179,1755654642800,-482.42168614,0.00023699,2]
[380311180,1755654642809,-481.61028789,0.00023699,2]
[380311181,1755654642818,-482.70003453,0.00023699,2]
[380311182,1755654642827,-482.91653693,0.00023699,2]
[380311183,1755654642836,-464.76873784,0.00023699,2]
[380311184,1755654642846,-481.03747727,0.00023699,2]
[380311185,1755654642855,-484.30449383,0.00023699,2]
[380311186,1755654642864,-463.18420471,0.00023699,2]
[380311187,1755654642873,-482.93503284,0.00023699,2]
[380311188,1755654642883,-483.53453255,0.00023699,2]
[380311189,1755654642892,-481.22118963,0.00023699,2]
[380311190,1755654642903,-481.82382275,0.00023699,2]
[380311191,1755654642912,-485.28749721,0.00023699,2]
[380311192,1755654642921,-460.95990874,0.00023699,2]
[380311193,1755654642930,-483.41527524,0.00023699,2]
[380311194,1755654642939,-485.06024088,0.00023699,2]
[380311195,1755654642948,-485.12786412,0.00023699,2]
[380311196,1755654642957,-412.8960653,0.00023699,2]
[380311197,1755654642966,-487.28390658,0.00023699,2]
[380311198,1755654642975,-483.05574703,0.00023699,2]
[380311199,1755654642984,-490.34978692,0.00023699,2]
[380311200,1755654642993,-480.68653407,0.00023699,2]
[380311201,1755654643003,-485.07614923,0.00023699,2]
[380311202,1755654643013,-485.18338033,0.00023699,2]
[380311203,1755654643024,-482.65096798,0.00023699,2]
[380311204,1755654643035,-480.45150492,0.00023699,2]
[380311205,1755654643045,-481.87771206,0.00023699,2]
[380311206,1755654643054,-485.6594456,0.00023699,2]
[380311207,1755654643064,-481.43918249,0.00023699,2]
[380311208,1755654643074,-481.05487587,0.00023699,2]
[380311215,1755654643186,-482.12715741,0.00023699,2]
[380311216,1755654643196,-485.42924557,0.00023699,2]
[380311217,1755654643205,-484.67905224,0.00023699,2]
[380311218,1755654643214,-482.17488154,0.00023699,2]
[380311219,1755654643224,-488.07503396,0.00023699,2]
[380311220,1755654643233,-480.48984424,0.00023699,2]
[380311221,1755654643242,-484.77863419,0.00023699,2]
[380311223,1755654643251,-481.17013037,0.00023699,2]
[380311224,1755654643260,-503.37653614,0.00023699,2]
[380311225,1755654643270,-480.59774382,0.00023699,2]
[380311226,1755654643279,-483.1023738,0.00023699,2]
[380311227,1755654643288,-481.5290886,0.00023699,2]
[380311228,1755654643297,-483.99336663,0.00023699,2]
[380311229,1755654643307,-427.54403183,0.00023699,2]
[380311230,1755654643316,-534.74367439,0.00023699,2]
[380311231,1755654643325,-482.22561453,0.00023699,2]
[380311232,1755654643334,-487.74455695,0.00023699,2]
[380311233,1755654643343,-177.92648175,0.00023723,2]
[380311234,1755654643353,-1779.26481754,0.00023733,2]
[380311235,1755654643362,-500.0,0.00023739,2]
[380311236,1755654643371,-790.14,0.00023748,2]
[380311237,1755654643381,-163.54004871,0.00023754,2]
[380311238,1755654643390,-177.92648175,0.00023757,2]
[380311239,1755654643403,-6461.22955819,0.00023759,2]
[380311240,1755654643412,-1489.65308653,0.0002377,2]
[380311241,1755654643421,-163.54004871,0.00023773,2]
[380311242,1755654643432,-1489.65308653,0.00023774,2]
[380311243,1755654643441,-6461.22955819,0.00023779,2]
[380311244,1755654643451,-1779.26481754,0.00023795,2]
[380311245,1755654643460,-12500.0,0.00023798,7]
[380311246,1755654643469,-1200.0,0.00023825,2]
[380311247,1755654643478,-510.21,0.00023835,2]
[380311248,1755654643488,-678.94,0.00023835,2]
[380311249,1755654643497,-200.38855246,0.00023836,2]
[380311250,1755654643506,-151.0,0.00023836,2]
[380311252,1755654643515,-152.10104815,0.00023836,2]
[380311253,1755654643524,-492.0,0.00023836,2]
[380311255,1755654643533,-153.00135488,0.00023836,2]
[380311256,1755654643542,-152.25667334,0.00023836,2]
[380311257,1755654643550,-198.80407017,0.00023836,2]
[380311258,1755654643560,-199.38470681,0.00023836,2]
[380311259,1755654643569,-153.70008527,0.00023836,2]
[380311260,1755654643578,-480.0,0.00023871,2]
[380311261,1755654643587,-480.0,0.00023871,2]
[380311262,1755654643596,-1517.89801124,0.000239,2]
[380311263,1755654643606,-151.0,0.00023934,2]
[380311264,1755654643615,-151.0,0.00023934,2]
[380311265,1755654643624,-151.0,0.00023934,2]
[380311266,1755654643634,-151.0,0.00023934,2]
[380311267,1755654643643,-300.0,0.00023934,2]
[380311268,1755654643655,-151.0,0.00023934,2]
[380311269,1755654643663,-151.0,0.00023934,2]
[380311270,1755654643673,-151.0,0.00023934,2]
[380311271,1755654643683,-300.0,0.00023934,2]
[380311272,1755654643692,-151.0,0.00023934,2]
[380311273,1755654643701,-151.0,0.00023934,2]
[380311274,1755654643710,-151.0,0.00023934,2]
[380311275,1755654643719,-151.0,0.00023934,2]
[380311277,1755654643729,-300.0,0.00023934,2]
[380311278,1755654643739,-151.0,0.00023934,2]
[380311279,1755654643749,-151.0,0.00023934,2]
[380311281,1755654643758,-151.0,0.00023934,2]
[380311282,1755654643768,-300.0,0.00023934,2]
[380311285,1755654643777,-151.0,0.00023934,2]
[380311286,1755654643787,-151.0,0.00023934,2]
[380311287,1755654643796,-151.0,0.00023934,2]
[380311288,1755654643806,-320.74982047,0.00023934,2]
[380311289,1755654643816,-151.0,0.00023934,2]
[380311290,1755654643825,-151.0,0.00023934,2]
[380311291,1755654643835,-151.0,0.00023934,2]
[380311292,1755654643845,-151.0,0.00023934,2]
[380311293,1755654643855,-151.0,0.00023934,2]
[380311294,1755654643864,-151.0,0.00023934,2]
[380311295,1755654643875,-151.0,0.00023934,2]
[380311296,1755654643884,-151.0,0.00023934,2]
[380311297,1755654643894,-151.0,0.00023934,2]
[380311298,1755654643906,-151.0,0.00023934,2]
[380311299,1755654643916,-151.0,0.00023934,2]
[380311300,1755654643926,-151.0,0.00023934,2]
[380311301,1755654643935,-151.0,0.00023934,2]
[380311302,1755654643945,-151.0,0.00023934,2]
[380311303,1755654643955,-151.0,0.00023934,2]
[380311304,1755654643964,-151.0,0.00023934,2]
[380311305,1755654643974,-151.0,0.00023934,2]
[380311306,1755654643983,-288.53915465,0.00023934,2]
[380311307,1755654643993,-151.0,0.00023934,2]
[380311308,1755654644003,-151.0,0.00023934,2]
[380311309,1755654644012,-151.0,0.00023934,2]
[380311310,1755654644025,-268.38095863,0.00023934,2]
[380311311,1755654644034,-151.0,0.00023934,2]
[380311312,1755654644043,-2183.31810187,0.00023934,2]
[380311313,1755654644053,-151.0,0.00023934,2]
[380311314,1755654644063,-151.0,0.00023934,2]
[380311315,1755654644073,-17842.522448,0.00023934,2]
[380311316,1755654644083,-151.0,0.00023934,2]
[380311317,1755654644091,-151.0,0.00023934,2]
[380311318,1755654644101,-151.0,0.00023934,2]
[380311319,1755654644115,-151.0,0.00023934,2]
[380311320,1755654644124,-151.0,0.00023934,2]
[380311321,1755654644133,-151.0,0.00023934,2]
[380311322,1755654644142,-151.0,0.00023934,2]
[380311323,1755654644153,-151.0,0.00023934,2]
[380311324,1755654644163,-151.0,0.00023934,2]
[380311325,1755654644173,-151.0,0.00023934,2]
[380311326,1755654644182,-151.0,0.00023934,2]
[380311327,1755654644192,-151.0,0.00023934,2]
[380311328,1755654644201,-1000.0,0.00023934,2]
[380311329,1755654644211,-1000.0,0.00023934,2]
[380311330,1755654644220,-1000.0,0.00023934,2]
[380311331,1755654644230,-1000.0,0.00023934,2]
[380311332,1755654644240,-1000.0,0.00023934,2]
[380311333,1755654644250,-1000.0,0.00023934,2]
[380311334,1755654644260,-1000.0,0.00023934,2]
[380311335,1755654644269,-1000.0,0.00023934,2]
[380311336,1755654644278,-1000.0,0.00023934,2]
[380311337,1755654644289,-1000.0,0.00023934,2]
[380311338,1755654644300,-1000.0,0.00023934,2]
[380311339,1755654644310,-1000.0,0.00023934,2]
[380311340,1755654644321,-1000.0,0.00023934,2]
[380311341,1755654644330,-2264.10087164,0.00023989,2]
[380311342,1755654644340,-2503.32668315,0.00023994,2]
[380311343,1755654644350,-160.0,0.00024,7]
[380311344,1755654644359,-232.21311493,0.00024,7]
[380311345,1755654644369,-843.93972674,0.00024,7]
[380311346,1755654644379,-790.14,0.00024022,2]
[380311347,1755654644388,-2298.70916242,0.00024044,2]
[380311348,1755654644397,-600.0,0.0002407,20]
[380311349,1755654644411,-510.21,0.00024109,2]
[380311350,1755654644419,-678.94,0.00024109,2]
[380311351,1755654644429,-248.73057721,0.0002411,2]
[380311352,1755654644438,-492.0,0.0002411,2]
[380311353,1755654644447,-460.0,0.00024144,2]
[380311354,1755654644456,-480.0,0.00024145,2]
[380311355,1755654644466,-480.0,0.00024145,2]
[380311356,1755654644475,-504.96629101,0.00024287,2]
[380311357,1755654644484,-790.14,0.00024296,2]
[380311358,1755654644495,-578.20443966,0.000243,2]
[380311359,1755654644505,-504.33782148,0.000243,2]
[380311360,1755654644516,-501.61740736,0.000243,2]
[380311361,1755654644526,-13270.12,0.000243,7]